[Event "44th Chess Olympiad Open 2022"]
[Site "Chennai"]
[Date "2022.07.29"]
[Round "1.29"]
[White "Zhao, Zong-Yuan"]
[Black "Abugenda, Nagi"]
[Result "1-0"]
[WhiteElo "2513"]
[BlackElo "1991"]
[Annotator "ChessBase"]
[PlyCount "73"]
[EventDate "2022.??.??"]
[TimeControl "60"]

1. d4 {[%emt 0:00:07]} Nf6 {[%emt 0:00:16]} 2. c4 {[%emt 0:00:01]} e6 {[%emt 0:
00:00]} 3. Nf3 {[%emt 0:00:12]} Bb4+ {[%emt 0:00:21]} 4. Nbd2 {[%emt 0:00:30]}
b6 {[%emt 0:01:05]} 5. a3 {[%emt 0:00:38]} Bxd2+ {[%emt 0:00:21]} 6. Qxd2 {
[%emt 0:01:39]} Bb7 {[%emt 0:00:37]} 7. e3 {[%emt 0:00:04]} Ne4 {[%emt 0:01:26]
} 8. Qc2 {[%emt 0:00:07]} O-O {[%emt 0:00:42]} 9. Bd3 {[%emt 0:04:36]} f5 {
[%emt 0:00:24]} 10. O-O {[%emt 0:00:05]} Qe8 {[%emt 0:02:29]} 11. Ne1 {[%emt 0:
00:00]} Qh5 {[%emt 0:04:12]} 12. Be2 {[%emt 0:15:46]} Qh4 {[%emt 0:05:11]} 13.
d5 {[%emt 0:12:18]} Rf6 {[%emt 0:21:52]} 14. Nf3 {[%emt 0:01:36]} Qh6 {[%emt 0:
00:00]} 15. b4 {[%emt 0:12:19]} Ng5 {[%emt 0:04:46]} 16. e4 {[%emt 0:06:46]} f4
{[%emt 0:03:23]} 17. Bb2 {[%emt 0:00:31]} Rg6 {[%emt 0:02:29]} 18. Ne5 {
[%emt 0:06:17]} f3 {[%emt 0:05:58]} 19. Nxf3 {[%emt 0:01:06]} Nh3+ {[%emt 0:00:
00]} 20. Kh1 {[%emt 0:00:02]} Nf4 {[%emt 0:02:37]} 21. Bc1 {[%emt 0:03:54]} e5
{[%emt 0:01:31]} 22. Nxe5 {[%emt 0:05:35]} Qg5 {[%emt 0:01:58]} 23. g3 {
[%emt 0:01:41]} Qxe5 {[%emt 0:03:29]} 24. Bxf4 {[%emt 0:00:05]} Qe7 {[%emt 0:
00:00]} 25. Bh5 {[%emt 0:01:36]} d6 {[%emt 0:00:27]} 26. c5 {[%emt 0:01:59]}
Na6 {[%emt 0:01:04]} 27. c6 {[%emt 0:02:56]} Bc8 {[%emt 0:00:26]} 28. e5 {
[%emt 0:00:40]} dxe5 {[%emt 0:02:47]} 29. Rfe1 {[%emt 0:00:50]} Bh3 {[%emt 0:
00:00]} 30. Rxe5 {[%emt 0:00:37]} Qf6 {[%emt 0:01:11]} 31. Qe2 {[%emt 0:04:08]}
Rf8 {[%emt 0:01:24]} 32. Qxa6 {[%emt 0:00:50]} Rg5 {[%emt 0:05:38]} 33. Qe2 {
[%emt 0:01:32]} Rf5 {[%emt 0:01:43]} 34. Re1 {[%emt 0:00:46]} g5 {[%emt 0:00:
00]} 35. Bg4 {[%emt 0:02:00]} Rxe5 {[%emt 0:07:09]} 36. Bxe5 {[%emt 0:00:19]}
Bxg4 {[%emt 0:00:15]} 37. Qxg4 {[%emt 0:01:08]} 1-0

[Event "44th Chess Olympiad Open 2022"]
[Site "Chennai"]
[Date "2022.07.29"]
[Round "1.29"]
[White "Attalib, Osama A."]
[Black "Kuybokarov, Temur"]
[Result "0-1"]
[WhiteElo "2033"]
[BlackElo "2583"]
[Annotator "RC"]
[PlyCount "136"]
[EventDate "2022.??.??"]
[TimeControl "60"]

1. e4 {[%emt 0:00:30]} e5 {[%emt 0:00:03]} 2. Nf3 {[%emt 0:00:00]} Nc6 {
[%emt 0:00:09]} 3. Bb5 {[%emt 0:00:50]} a6 {[%emt 0:01:48]} 4. Bxc6 {[%emt 0:
00:00]} dxc6 {[%emt 0:00:13]} 5. d4 {[%emt 0:00:17]} exd4 {[%emt 0:00:55]} 6.
Qxd4 {[%emt 0:00:13]} Qxd4 {[%emt 0:01:40]} 7. Nxd4 {[%emt 0:00:10]} Bd7 {
[%emt 0:01:48]} 8. Nc3 {[%emt 0:02:48]} O-O-O {[%emt 0:00:58]} 9. Be3 {[%emt 0:
00:00]} Ne7 {[%emt 0:09:31]} 10. O-O-O {[%emt 0:04:21]} Ng6 {[%emt 0:03:43]}
11. Nb3 {[%emt 0:10:23]} b6 {[%emt 0:08:10]} 12. f3 {[%emt 0:07:49]} Be7 {
[%emt 0:14:29]} 13. a3 {[%emt 0:12:11]} f5 {[%emt 0:08:57]} 14. exf5 {[%emt 0:
00:00]} Bxf5 {[%emt 0:01:58]} 15. Nd4 {[%emt 0:01:41]} Bd7 {[%emt 0:00:14]} 16.
Ne4 {[%emt 0:01:10]} h6 {[%emt 0:00:46]} 17. Rhe1 {[%emt 0:02:42]} c5 {[%emt 0:
00:00]} 18. Ne2 {[%emt 0:00:43]} Nh4 {[%emt 0:00:36]} 19. Rg1 {[%emt 0:09:09]}
g5 {[%emt 0:03:35]} 20. Bf2 {[%emt 0:09:49]} Ng6 {[%emt 0:01:10]} 21. h3 {
[%emt 0:10:26]} h5 {[%emt 0:09:56]} 22. Be3 {[%emt 0:06:22]} g4 {[%emt 0:03:49]
} 23. hxg4 {[%emt 0:00:00]} hxg4 {[%emt 0:00:05]} 24. Bg5 {[%emt 0:00:00]}
Bxg5+ {[%emt 0:02:40]} 25. Nxg5 {[%emt 0:00:13]} Rh2 {[%emt 0:03:09]} 26. fxg4
{[%emt 0:00:00]} Re8 {[%emt 0:02:33]} 27. Nc3 {[%emt 0:00:06]} Bxg4 {[%emt 0:
00:00]} 28. Nf3 {[%emt 0:00:33]} Bxf3 {[%emt 0:00:30]} 29. gxf3 {[%emt 0:00:07]
} Nh4 {[%emt 0:00:18]} 30. Rgf1 {[%emt 0:05:52]} Nf5 {[%emt 0:04:57]} 31. Rh1 {
[%emt 0:02:54]} Reh8 {[%emt 0:02:55]} 32. Rxh2 {[%emt 0:01:21]} Rxh2 {[%emt 0:
00:00]} 33. Rd2 {[%emt 0:01:26]} Rh1+ {[%emt 0:00:14]} 34. Rd1 {[%emt 0:00:22]}
Rh3 {[%emt 0:00:06]} 35. f4 {[%emt 0:00:57]} Nd4 {[%emt 0:01:13]} 36. Rf1 {
[%emt 0:01:40]} Rh2 {[%emt 0:06:25]} 37. f5 {[%emt 0:00:08]} Rxc2+ {[%emt 0:00:
00]} 38. Kb1 {[%emt 0:00:22]} Rh2 {[%emt 0:03:30]} 39. f6 {[%emt 0:00:09]} Rh8
{[%emt 0:00:06]} 40. Nd5 {[%emt 0:00:43]} Nc6 {[%emt 0:01:38]} 41. Nf4 {
[%emt 0:32:06]} Ne5 {[%emt 0:31:01]} 42. Re1 {[%emt 0:00:27]} Rh4 {[%emt 0:00:
00]} 43. Ne6 {[%emt 0:00:26]} Nf7 {[%emt 0:00:29]} 44. Ng7 {[%emt 0:00:49]} Rf4
{[%emt 0:00:31]} 45. Nh5 {[%emt 0:00:19]} Rf5 {[%emt 0:00:11]} 46. Re7 {
[%emt 0:00:40]} Nd6 {[%emt 0:00:47]} 47. Rh7 {[%emt 0:00:25]} Rf2 {[%emt 0:00:
00]} 48. Rh8+ {[%emt 0:00:34]} Kb7 {[%emt 0:00:14]} 49. Rf8 {[%emt 0:00:31]}
Ne4 {[%emt 0:00:17]} 50. f7 {[%emt 0:00:33]} Nd6 {[%emt 0:00:08]} 51. Ng7 {
[%emt 0:00:26]} Rxf7 {[%emt 0:00:05]} 52. Rxf7 {[%emt 0:00:08]} Nxf7 {[%emt 0:
00:00]} 53. Nf5 {[%emt 0:01:14]} Nd6 {[%emt 0:01:04]} 54. Ne3 {[%emt 0:00:00]}
c4 {[%emt 0:00:31]} 55. Kc2 {[%emt 0:00:01]} Kc6 {[%emt 0:00:07]} 56. Kc3 {
[%emt 0:00:19]} Kc5 {[%emt 0:00:06]} 57. Ng4 {[%emt 0:01:07]} Ne4+ {[%emt 0:00:
00]} 58. Kc2 {[%emt 0:00:15]} Kd4 {[%emt 0:00:20]} 59. Nh6 {[%emt 0:00:47]} Ke5
{[%emt 0:00:19]} 60. Nf7+ {[%emt 0:00:37]} Ke6 {[%emt 0:00:13]} 61. Nd8+ {
[%emt 0:00:29]} Kd5 {[%emt 0:00:11]} 62. Nf7 {[%emt 0:00:23]} b5 {[%emt 0:00:
00]} 63. Nh6 {[%emt 0:00:18]} c5 {[%emt 0:01:03]} 64. Nf5 {[%emt 0:00:21]} b4 {
[%emt 0:19:36]} 65. Ne3+ {[%emt 0:00:00]} Kd4 {[%emt 0:00:00]} 66. Nf5+ {
[%emt 0:00:00]} Ke5 {[%emt 0:00:00]} 67. Ne3 {[%emt 0:01:40]} b3+ {[%emt 0:00:
00]} 68. Kc1 {[%emt 0:00:00]} Kd4 {[%emt 0:00:00]} 0-1

[Event "44th Chess Olympiad Open 2022"]
[Site "Chennai"]
[Date "2022.07.29"]
[Round "1.29"]
[White "Fates, Omer Salah"]
[Black "Tan, Justin"]
[Result "0-1"]
[WhiteElo "1940"]
[BlackElo "2508"]
[Annotator "RC"]
[PlyCount "62"]
[EventDate "2022.??.??"]
[TimeControl "60"]

1. e4 {[%emt 0:00:06]} c6 {[%emt 0:00:05]} 2. d4 {[%emt 0:00:10]} d5 {[%emt 0:
00:00]} 3. exd5 {[%emt 0:00:07]} cxd5 {[%emt 0:00:07]} 4. Nf3 {[%emt 0:00:14]}
Nc6 {[%emt 0:00:11]} 5. Be2 {[%emt 0:00:23]} Bf5 {[%emt 0:01:35]} 6. O-O {
[%emt 0:00:26]} e6 {[%emt 0:00:28]} 7. Be3 {[%emt 0:01:11]} Bd6 {[%emt 0:02:48]
} 8. Nbd2 {[%emt 0:01:11]} h6 {[%emt 0:03:50]} 9. c4 {[%emt 0:01:23]} Nge7 {
[%emt 0:03:35]} 10. c5 {[%emt 0:01:26]} Bc7 {[%emt 0:00:03]} 11. a3 {[%emt 0:
00:00]} a5 {[%emt 0:03:25]} 12. Rc1 {[%emt 0:01:18]} O-O {[%emt 0:00:07]} 13.
Re1 {[%emt 0:06:13]} Bh7 {[%emt 0:03:31]} 14. Nf1 {[%emt 0:01:42]} f6 {[%emt 0:
00:00]} 15. Bd3 {[%emt 0:04:41]} a4 {[%emt 0:06:03]} 16. Ng3 {[%emt 0:03:41]}
Bxd3 {[%emt 0:04:32]} 17. Qxd3 {[%emt 0:00:15]} e5 {[%emt 0:00:27]} 18. dxe5 {
[%emt 0:01:00]} fxe5 {[%emt 0:00:04]} 19. Rcd1 {[%emt 0:01:25]} Qe8 {[%emt 0:
00:00]} 20. Nh4 {[%emt 0:03:56]} e4 {[%emt 0:05:17]} 21. Qe2 {[%emt 0:01:59]}
g5 {[%emt 0:08:12]} 22. Qg4 {[%emt 0:01:46]} Ne5 {[%emt 0:01:49]} 23. Qe6+ {
[%emt 0:00:58]} Qf7 {[%emt 0:07:20]} 24. Qxh6 {[%emt 0:03:22]} gxh4 {[%emt 0:
00:00]} 25. Qxh4 {[%emt 0:01:07]} Ra6 {[%emt 0:01:50]} 26. Bg5 {[%emt 0:03:39]}
N7g6 {[%emt 0:04:30]} 27. Qh5 {[%emt 0:01:03]} Nd3 {[%emt 0:01:23]} 28. Rf1 {
[%emt 0:01:43]} Qh7 {[%emt 0:04:40]} 29. Bh6 {[%emt 0:01:41]} Ngf4 {[%emt 0:00:
00]} 30. Bxf4 {[%emt 0:00:42]} Qxh5 {[%emt 0:00:50]} 31. Nxh5 {[%emt 0:01:20]}
Bxf4 {[%emt 0:04:27]} 0-1

[Event "44th Chess Olympiad Open 2022"]
[Site "Chennai"]
[Date "2022.07.29"]
[Round "1.30"]
[White "Peralta, Fernando"]
[Black "Fortes, Aires"]
[Result "1-0"]
[WhiteElo "2591"]
[BlackElo "1508"]
[Annotator "RC"]
[PlyCount "49"]
[EventDate "2022.??.??"]
[TimeControl "60"]

1. Nf3 {[%emt 0:00:03]} Nc6 {[%emt 0:00:18]} 2. d4 {[%emt 0:00:26]} e6 {
[%emt 0:00:39]} 3. e4 {[%emt 0:00:38]} Nf6 {[%emt 0:00:56]} 4. e5 {[%emt 0:00:
00]} Nd5 {[%emt 0:00:37]} 5. c4 {[%emt 0:01:29]} Bb4+ {[%emt 0:00:17]} 6. Nbd2
{[%emt 0:04:30]} Nde7 {[%emt 0:01:09]} 7. a3 {[%emt 0:07:16]} Bxd2+ {[%emt 0:
00:00]} 8. Bxd2 {[%emt 0:00:05]} d6 {[%emt 0:00:27]} 9. exd6 {[%emt 0:02:25]}
cxd6 {[%emt 0:00:13]} 10. Bc3 {[%emt 0:06:14]} d5 {[%emt 0:02:39]} 11. c5 {
[%emt 0:00:09]} a5 {[%emt 0:08:24]} 12. b4 {[%emt 0:03:09]} axb4 {[%emt 0:00:
00]} 13. axb4 {[%emt 0:00:04]} Rxa1 {[%emt 0:00:17]} 14. Qxa1 {[%emt 0:00:04]}
Ng6 {[%emt 0:07:28]} 15. b5 {[%emt 0:06:23]} Nb8 {[%emt 0:03:35]} 16. Qa8 {
[%emt 0:06:12]} Qc7 {[%emt 0:04:56]} 17. b6 {[%emt 0:01:42]} Qc6 {[%emt 0:00:
00]} 18. Qxb8 {[%emt 0:03:40]} O-O {[%emt 0:00:20]} 19. Be2 {[%emt 0:04:05]} e5
{[%emt 0:01:52]} 20. O-O {[%emt 0:00:45]} Nf4 {[%emt 0:01:59]} 21. Qxe5 {
[%emt 0:00:49]} Nh3+ {[%emt 0:06:48]} 22. gxh3 {[%emt 0:00:30]} Re8 {[%emt 0:
00:00]} 23. Qd6 {[%emt 0:00:20]} Qxd6 {[%emt 0:00:21]} 24. cxd6 {[%emt 0:00:04]
} Rxe2 {[%emt 0:00:10]} 25. Ne5 {[%emt 0:00:32]} 1-0

[Event "44th Chess Olympiad Open 2022"]
[Site "Chennai"]
[Date "2022.07.29"]
[Round "1.30"]
[White "Krysa, Leandro"]
[Black "Mirulla, David"]
[Result "1-0"]
[WhiteElo "2515"]
[BlackElo "1953"]
[Annotator "RC"]
[PlyCount "107"]
[EventDate "2022.??.??"]
[TimeControl "60"]

1. d4 {[%emt 0:00:08]} Nf6 {[%emt 0:00:10]} 2. c4 {[%emt 0:00:13]} g6 {[%emt 0:
00:00]} 3. Nc3 {[%emt 0:00:15]} Bg7 {[%emt 0:00:09]} 4. e4 {[%emt 0:00:11]} d6
{[%emt 0:00:08]} 5. h3 {[%emt 0:00:16]} O-O {[%emt 0:07:07]} 6. Be3 {[%emt 0:
00:00]} e5 {[%emt 0:01:03]} 7. d5 {[%emt 0:00:00]} a5 {[%emt 0:02:57]} 8. g4 {
[%emt 0:00:26]} Na6 {[%emt 0:02:58]} 9. Qd2 {[%emt 0:01:34]} Nc5 {[%emt 0:00:
00]} 10. f3 {[%emt 0:00:34]} Ne8 {[%emt 0:05:05]} 11. h4 {[%emt 0:08:11]} f5 {
[%emt 0:05:52]} 12. g5 {[%emt 0:01:39]} f4 {[%emt 0:06:38]} 13. Bf2 {[%emt 0:
00:00]} Rf7 {[%emt 0:05:00]} 14. Bh3 {[%emt 0:02:38]} Bf8 {[%emt 0:01:05]} 15.
O-O-O {[%emt 0:12:13]} Ng7 {[%emt 0:02:26]} 16. Kb1 {[%emt 0:06:45]} b6 {
[%emt 0:05:13]} 17. Bxc8 {[%emt 0:03:12]} Rxc8 {[%emt 0:03:05]} 18. Nh3 {
[%emt 0:01:18]} Nh5 {[%emt 0:02:22]} 19. Bg1 {[%emt 0:03:33]} Nd7 {[%emt 0:00:
00]} 20. Bh2 {[%emt 0:04:38]} Be7 {[%emt 0:02:37]} 21. Nb5 {[%emt 0:03:05]} Nc5
{[%emt 0:06:29]} 22. Qg2 {[%emt 0:06:38]} Qd7 {[%emt 0:01:46]} 23. Nf2 {
[%emt 0:00:56]} Rcf8 {[%emt 0:04:35]} 24. Ng4 {[%emt 0:01:28]} Bd8 {[%emt 0:00:
00]} 25. Nh6+ {[%emt 0:00:52]} Kg7 {[%emt 0:00:10]} 26. Nxf7 {[%emt 0:00:32]}
Rxf7 {[%emt 0:00:49]} 27. Rhe1 {[%emt 0:02:32]} Kh8 {[%emt 0:09:26]} 28. Bg1 {
[%emt 0:02:46]} Nb7 {[%emt 0:02:21]} 29. Bf2 {[%emt 0:01:34]} Ng7 {[%emt 0:00:
00]} 30. Rg1 {[%emt 0:01:51]} Nh5 {[%emt 0:00:10]} 31. Qg4 {[%emt 0:01:43]} Kg8
{[%emt 0:01:22]} 32. Qxd7 {[%emt 0:01:52]} Rxd7 {[%emt 0:00:09]} 33. b3 {
[%emt 0:00:36]} Kf7 {[%emt 0:01:39]} 34. a3 {[%emt 0:00:46]} Ng7 {[%emt 0:00:
00]} 35. b4 {[%emt 0:01:00]} Be7 {[%emt 0:02:55]} 36. Kc2 {[%emt 0:03:11]} Ne8
{[%emt 0:00:57]} 37. Be1 {[%emt 0:01:13]} Rd8 {[%emt 0:01:26]} 38. bxa5 {
[%emt 0:01:38]} bxa5 {[%emt 0:01:10]} 39. Rb1 {[%emt 0:00:58]} a4 {[%emt 0:00:
00]} 40. Nc3 {[%emt 0:08:04]} Na5 {[%emt 0:01:07]} 41. Rb4 {[%emt 0:31:54]} Nb3
{[%emt 0:30:19]} 42. Bf2 {[%emt 0:00:55]} Nd4+ {[%emt 0:01:40]} 43. Bxd4 {
[%emt 0:01:03]} exd4 {[%emt 0:00:02]} 44. Nb5 {[%emt 0:00:51]} Ra8 {[%emt 0:00:
00]} 45. Nxd4 {[%emt 0:02:01]} Ng7 {[%emt 0:00:25]} 46. Rb7 {[%emt 0:00:28]}
Bd8 {[%emt 0:00:00]} 47. Nc6 {[%emt 0:00:00]} Ke8 {[%emt 0:00:00]} 48. Rgb1 {
[%emt 0:00:00]} Ra6 {[%emt 0:00:00]} 49. Rb8 {[%emt 0:00:00]} Rxc6 {[%emt 0:00:
00]} 50. dxc6 {[%emt 0:00:00]} Ne6 {[%emt 0:00:00]} 51. Kd3 {[%emt 0:00:00]}
Kf7 {[%emt 0:00:00]} 52. R1b5 {[%emt 0:00:00]} Be7 {[%emt 0:00:00]} 53. Ra8 {
[%emt 0:00:00]} Nd8 {[%emt 0:00:00]} 54. Rxd8 {[%emt 0:00:00]} 1-0

[Event "44th Chess Olympiad Open 2022"]
[Site "Chennai"]
[Date "2022.07.29"]
[Round "1.30"]
[White "Rodriguez Guevara, Celia M."]
[Black "Tristan, Leonardo"]
[Result "0-1"]
[WhiteElo "1859"]
[BlackElo "2558"]
[Annotator "RC"]
[PlyCount "56"]
[EventDate "2022.??.??"]
[TimeControl "60"]

1. e4 {[%emt 0:00:12]} e5 {[%emt 0:00:09]} 2. Nf3 {[%emt 0:00:08]} Nc6 {
[%emt 0:00:10]} 3. Bc4 {[%emt 0:00:10]} Bc5 {[%emt 0:00:12]} 4. c3 {[%emt 0:00:
00]} Nf6 {[%emt 0:00:16]} 5. d3 {[%emt 0:00:10]} a5 {[%emt 0:00:59]} 6. a4 {
[%emt 0:00:37]} d6 {[%emt 0:00:32]} 7. Bb3 {[%emt 0:00:32]} h6 {[%emt 0:01:32]}
8. Nbd2 {[%emt 0:02:12]} O-O {[%emt 0:01:40]} 9. O-O {[%emt 0:00:46]} Be6 {
[%emt 0:02:20]} 10. Bc2 {[%emt 0:01:45]} Ba7 {[%emt 0:04:38]} 11. h3 {[%emt 0:
00:00]} Nd7 {[%emt 0:12:24]} 12. Re1 {[%emt 0:03:37]} Kh8 {[%emt 0:07:00]} 13.
Nf1 {[%emt 0:03:16]} f5 {[%emt 0:04:59]} 14. exf5 {[%emt 0:08:16]} Bxf5 {
[%emt 0:00:05]} 15. Ng3 {[%emt 0:09:17]} Bg6 {[%emt 0:08:49]} 16. Be3 {[%emt 0:
00:00]} Bxe3 {[%emt 0:06:44]} 17. Rxe3 {[%emt 0:01:31]} Qf6 {[%emt 0:10:30]}
18. Bb3 {[%emt 0:10:23]} Rae8 {[%emt 0:12:04]} 19. Qd2 {[%emt 0:05:38]} Nc5 {
[%emt 0:03:57]} 20. Bc4 {[%emt 0:03:33]} Bf7 {[%emt 0:04:27]} 21. Bxf7 {
[%emt 0:05:39]} Qxf7 {[%emt 0:00:00]} 22. Ne4 {[%emt 0:04:29]} Nb3 {[%emt 0:00:
00]} 23. Qd1 {[%emt 0:01:06]} Nxa1 {[%emt 0:00:00]} 24. Qxa1 {[%emt 0:00:46]}
Ne7 {[%emt 0:00:00]} 25. c4 {[%emt 0:01:52]} Ng6 {[%emt 0:02:10]} 26. Ng3 {
[%emt 0:00:29]} Nf4 {[%emt 0:00:00]} 27. Qe1 {[%emt 0:01:16]} b6 {[%emt 0:00:
00]} 28. Re4 {[%emt 0:05:11]} Nxh3+ {[%emt 0:02:32]} 0-1

[Event "44th Chess Olympiad Open 2022"]
[Site "Chennai"]
[Date "2022.07.29"]
[Round "1.30"]
[White "Teixeira, Gil"]
[Black "Perez Ponsa, Federico"]
[Result "0-1"]
[WhiteElo "1741"]
[BlackElo "2554"]
[Annotator "RC"]
[PlyCount "66"]
[EventDate "2022.??.??"]
[TimeControl "60"]

1. e4 {[%emt 0:00:10]} c5 {[%emt 0:00:08]} 2. Nf3 {[%emt 0:00:24]} d6 {[%emt 0:
00:00]} 3. Be2 {[%emt 0:00:22]} Nf6 {[%emt 0:01:00]} 4. Nc3 {[%emt 0:00:46]} g6
{[%emt 0:01:06]} 5. d3 {[%emt 0:00:38]} Bg7 {[%emt 0:00:12]} 6. h3 {[%emt 0:00:
00]} O-O {[%emt 0:00:26]} 7. O-O {[%emt 0:00:00]} Nc6 {[%emt 0:00:17]} 8. Be3 {
[%emt 0:00:28]} e5 {[%emt 0:04:13]} 9. Qd2 {[%emt 0:01:53]} Nd4 {[%emt 0:02:10]
} 10. Bd1 {[%emt 0:01:32]} Re8 {[%emt 0:02:05]} 11. Bh6 {[%emt 0:00:48]} Be6 {
[%emt 0:01:14]} 12. Bxg7 {[%emt 0:00:18]} Kxg7 {[%emt 0:00:04]} 13. Nxd4 {
[%emt 0:00:20]} cxd4 {[%emt 0:00:09]} 14. Ne2 {[%emt 0:00:29]} d5 {[%emt 0:00:
00]} 15. f3 {[%emt 0:00:35]} Qb6 {[%emt 0:04:54]} 16. b3 {[%emt 0:01:05]} Rac8
{[%emt 0:03:35]} 17. Kh2 {[%emt 0:01:10]} Qc7 {[%emt 0:03:17]} 18. Kh1 {
[%emt 0:04:29]} Nh5 {[%emt 0:01:26]} 19. g4 {[%emt 0:01:28]} Nf4 {[%emt 0:00:
00]} 20. Nxf4 {[%emt 0:09:19]} exf4 {[%emt 0:00:05]} 21. Rc1 {[%emt 0:00:46]}
h5 {[%emt 0:04:39]} 22. Kg2 {[%emt 0:01:13]} Rh8 {[%emt 0:03:18]} 23. Rh1 {
[%emt 0:00:13]} hxg4 {[%emt 0:02:24]} 24. fxg4 {[%emt 0:00:10]} dxe4 {[%emt 0:
00:00]} 25. dxe4 {[%emt 0:00:20]} Qe5 {[%emt 0:00:07]} 26. Bf3 {[%emt 0:01:04]}
Rc3 {[%emt 0:00:13]} 27. Rhd1 {[%emt 0:01:16]} Rxf3 {[%emt 0:01:07]} 28. Kxf3 {
[%emt 0:03:03]} Rxh3+ {[%emt 0:00:05]} 29. Kg2 {[%emt 0:00:32]} Qxe4+ {[%emt 0:
00:00]} 30. Kxh3 {[%emt 0:03:28]} Qf3+ {[%emt 0:00:07]} 31. Kh2 {[%emt 0:00:14]
} Qg3+ {[%emt 0:00:04]} 32. Kh1 {[%emt 0:00:31]} Bd5+ {[%emt 0:00:03]} 33. Qg2
{[%emt 0:00:03]} Qxg2# {[%emt 0:00:01]} 0-1

[Event "44th Chess Olympiad Open 2022"]
[Site "Chennai"]
[Date "2022.07.29"]
[Round "1.31"]
[White "Berg, Emanuel"]
[Black "Parsons, Justin"]
[Result "0-1"]
[WhiteElo "2533"]
[BlackElo "1749"]
[Annotator "RC"]
[PlyCount "66"]
[EventDate "2022.??.??"]
[TimeControl "60"]

1. e4 {[%emt 0:00:03]} Nf6 {[%emt 0:00:13]} 2. Nc3 {[%emt 0:00:10]} d5 {
[%emt 0:00:23]} 3. exd5 {[%emt 0:01:25]} Nxd5 {[%emt 0:00:10]} 4. Nf3 {[%emt 0:
00:00]} Nxc3 {[%emt 0:01:27]} 5. dxc3 {[%emt 0:05:53]} Qxd1+ {[%emt 0:02:14]}
6. Kxd1 {[%emt 0:00:06]} f6 {[%emt 0:01:09]} 7. Be3 {[%emt 0:01:21]} e5 {
[%emt 0:00:36]} 8. h3 {[%emt 0:03:00]} Be6 {[%emt 0:00:41]} 9. Bb5+ {[%emt 0:
00:00]} Nd7 {[%emt 0:01:58]} 10. Ke2 {[%emt 0:07:12]} c6 {[%emt 0:03:17]} 11.
Bd3 {[%emt 0:01:50]} Nc5 {[%emt 0:00:44]} 12. Bxc5 {[%emt 0:12:50]} Bxc5 {
[%emt 0:00:12]} 13. Rhd1 {[%emt 0:01:08]} Ke7 {[%emt 0:01:18]} 14. Nd2 {
[%emt 0:02:57]} Rad8 {[%emt 0:04:00]} 15. Ne4 {[%emt 0:03:59]} Bb6 {[%emt 0:00:
00]} 16. Ke1 {[%emt 0:03:13]} g6 {[%emt 0:01:25]} 17. Be2 {[%emt 0:13:06]} f5 {
[%emt 0:02:05]} 18. Nd2 {[%emt 0:01:20]} e4 {[%emt 0:03:56]} 19. Nc4 {[%emt 0:
00:00]} Bc7 {[%emt 0:00:21]} 20. a4 {[%emt 0:01:16]} f4 {[%emt 0:02:21]} 21.
Rd4 {[%emt 0:06:43]} f3 {[%emt 0:02:47]} 22. gxf3 {[%emt 0:01:01]} exf3 {
[%emt 0:00:06]} 23. Bf1 {[%emt 0:04:23]} Rxd4 {[%emt 0:03:53]} 24. cxd4 {
[%emt 0:00:02]} Rf8 {[%emt 0:00:34]} 25. Rd1 {[%emt 0:04:03]} Rf4 {[%emt 0:00:
00]} 26. b3 {[%emt 0:04:45]} Re4+ {[%emt 0:00:51]} 27. Ne3 {[%emt 0:02:48]}
Ba5+ {[%emt 0:05:59]} 28. Rd2 {[%emt 0:00:03]} Rxd4 {[%emt 0:00:41]} 29. Bd3 {
[%emt 0:00:14]} Bxh3 {[%emt 0:02:03]} 30. Nc4 {[%emt 0:02:04]} Bxd2+ {[%emt 0:
00:00]} 31. Kxd2 {[%emt 0:00:27]} Bf5 {[%emt 0:00:59]} 32. Ke3 {[%emt 0:00:10]}
Bxd3 {[%emt 0:00:26]} 33. Kxd4 {[%emt 0:00:23]} Bxc4 {[%emt 0:00:04]} 0-1

[Event "44th Chess Olympiad Open 2022"]
[Site "Chennai"]
[Date "2022.07.29"]
[Round "1.31"]
[White "Hillarp Persson, Tiger"]
[Black "Blackman, Justin"]
[Result "1/2-1/2"]
[WhiteElo "2516"]
[BlackElo "2195"]
[Annotator "RC"]
[PlyCount "92"]
[EventDate "2022.??.??"]
[TimeControl "60"]

1. Nf3 {[%emt 0:00:05]} Nf6 {[%emt 0:00:09]} 2. g3 {[%emt 0:00:12]} e6 {
[%emt 0:00:08]} 3. Bg2 {[%emt 0:00:11]} d5 {[%emt 0:00:10]} 4. O-O {[%emt 0:00:
00]} Be7 {[%emt 0:00:34]} 5. d3 {[%emt 0:00:30]} c5 {[%emt 0:00:12]} 6. Nbd2 {
[%emt 0:00:08]} Nc6 {[%emt 0:00:20]} 7. e4 {[%emt 0:00:07]} b6 {[%emt 0:00:15]}
8. Re1 {[%emt 0:00:24]} Bb7 {[%emt 0:00:09]} 9. Qe2 {[%emt 0:05:10]} Qc7 {
[%emt 0:04:39]} 10. c3 {[%emt 0:01:10]} O-O {[%emt 0:07:06]} 11. e5 {[%emt 0:
00:00]} Nd7 {[%emt 0:00:07]} 12. Nf1 {[%emt 0:00:06]} b5 {[%emt 0:03:10]} 13.
Bf4 {[%emt 0:06:33]} Nb6 {[%emt 0:19:09]} 14. h4 {[%emt 0:12:50]} Rfd8 {
[%emt 0:15:54]} 15. d4 {[%emt 0:08:02]} b4 {[%emt 0:07:13]} 16. N1h2 {[%emt 0:
00:00]} bxc3 {[%emt 0:05:55]} 17. bxc3 {[%emt 0:01:27]} cxd4 {[%emt 0:00:10]}
18. Nxd4 {[%emt 0:01:04]} Na4 {[%emt 0:12:12]} 19. Rac1 {[%emt 0:03:23]} Rac8 {
[%emt 0:07:28]} 20. Qg4 {[%emt 0:05:26]} Nc5 {[%emt 0:01:05]} 21. Bf1 {[%emt 0:
00:00]} Ba6 {[%emt 0:02:14]} 22. Bxa6 {[%emt 0:11:09]} Nxa6 {[%emt 0:00:02]}
23. Bg5 {[%emt 0:04:50]} Bxg5 {[%emt 0:04:52]} 24. Qxg5 {[%emt 0:00:07]} h6 {
[%emt 0:02:17]} 25. Qe3 {[%emt 0:04:22]} Nxd4 {[%emt 0:01:25]} 26. cxd4 {
[%emt 0:00:08]} Qa5 {[%emt 0:00:18]} 27. a3 {[%emt 0:00:56]} Rc4 {[%emt 0:00:
00]} 28. Nf3 {[%emt 0:05:33]} Rdc8 {[%emt 0:00:00]} 29. Kg2 {[%emt 0:00:14]}
Rc3 {[%emt 0:00:00]} 30. Qd2 {[%emt 0:02:09]} R8c4 {[%emt 0:00:00]} 31. Rxc3 {
[%emt 0:03:47]} Qxc3 {[%emt 0:00:00]} 32. Qxc3 {[%emt 0:02:11]} Rxc3 {[%emt 0:
00:00]} 33. Rb1 {[%emt 0:00:57]} Kf8 {[%emt 0:01:07]} 34. Rb7 {[%emt 0:01:46]}
Rc7 {[%emt 0:00:08]} 35. Rb5 {[%emt 0:00:39]} Ke8 {[%emt 0:01:14]} 36. h5 {
[%emt 0:03:39]} Kd7 {[%emt 0:00:46]} 37. g4 {[%emt 0:00:30]} Kc8 {[%emt 0:00:
00]} 38. g5 {[%emt 0:00:31]} Rc3 {[%emt 0:00:36]} 39. g6 {[%emt 0:01:44]} fxg6
{[%emt 0:00:25]} 40. hxg6 {[%emt 0:00:06]} Rxa3 {[%emt 0:00:45]} 41. Ng1 {
[%emt 0:31:32]} Ra4 {[%emt 0:23:31]} 42. Ne2 {[%emt 0:00:00]} Nc7 {[%emt 0:00:
00]} 43. Rb3 {[%emt 0:00:00]} Ra2 {[%emt 0:02:29]} 44. Nf4 {[%emt 0:00:00]} Ra4
{[%emt 0:01:52]} 45. Ne2 {[%emt 0:00:00]} Ra2 {[%emt 0:01:58]} 46. Nf4 {
[%emt 0:00:00]} Ra4 {[%emt 0:00:05]} 1/2-1/2